bitfinex-derivatives/quotes_ETHF0:USTF0_20250410
["timestamp","ask_amount","ask_price","bid_price","bid_amount"]
[1744300847227,3.2078,1497.6,1496.9,9.747]
[1744300847429,3.34072,1497.7,1496.9,9.747]
[1744300847430,1.33691,1497.0,1496.9,9.747]
[1744300847629,1.33709,1496.8,1496.7,3.2078]
[1744300847832,1.33709,1496.8,1496.7,8.83602272]
[1744300848028,3.34214,1497.1,1496.5,12.9548]
[1744300848029,1.33727,1496.6,1496.5,12.9548]
[1744300848231,3.3425,1496.9,1496.5,12.9548]
[1744300848232,3.21780267,1496.9,1496.6,8.83602272]
[1744300848534,0.01000267,1496.9,1496.6,8.83602272]
[1744300848738,1.33709,1496.8,1496.7,8.83602272]
[1744300849036,1.33715,1496.8,1496.6,18.58302272]
[1744300849240,0.01000267,1496.9,1496.7,1.33713]
[1744300849429,0.01000267,1496.9,1496.8,1.33709]
[1744300849630,0.01000267,1496.9,1496.8,8.83602272]
[1744300849827,0.01000267,1496.9,1496.8,10.17311272]
[1744300850129,0.01000267,1496.9,1496.8,8.83602272]
[1744300850533,1.34700267,1496.9,1496.8,8.83602272]
[1744300850935,1.33718,1496.7,1496.6,9.747]
[1744300851138,1.33727,1496.6,1496.5,3.2078]
[1744300851332,1.33736,1496.5,1496.4,0.01000267]
[1744300851532,10.89026,1496.5,1496.4,0.01000267]
[1744300851739,15.89026,1496.5,1496.4,0.01000267]
[1744300852237,15.89026,1496.5,1496.4,2.67e-06]
[1744300853534,21.72426,1496.5,1496.4,2.67e-06]
[1744300853736,28.01421323,1496.5,1495.5,13.416]
[1744300853936,3.2078,1496.2,1495.7,3.2078]
[1744300854239,6.55098,1496.6,1495.9,3.2078]
[1744300854445,1.33764,1496.2,1496.0,8.83602539]
[1744300854743,1.33752,1496.4,1496.1,4.54546]
[1744300854944,12.7187,1496.6,1496.2,19.04422539]
[1744300855147,0.01000267,1496.4,1496.3,3.2078]
[1744300855334,0.01000267,1496.4,1496.3,12.04382539]
[1744300855843,1.33753,1496.3,1496.2,10.2082]
[1744300856240,0.01000267,1496.4,1496.3,1.33753]
[1744300856446,0.01000267,1496.4,1496.3,15.17355539]
[1744300856644,9.6411,1497.0,1496.3,15.17355539]
[1744300856645,3.34161,1497.3,1496.4,3.34362]
[1744300856845,1.33709,1496.8,1496.7,3.2078]
[1744300857037,9.6411,1497.3,1496.7,5.0]
[1744300857237,1.337,1496.9,1496.8,18.42382539]
[1744300857540,1.33709,1496.8,1496.7,8.83602539]
[1744300857846,1.33709,1496.8,1496.7,8.84602806]
[1744300858241,1.33709,1496.8,1496.7,0.01000267]
[1744300858439,1.33709,1496.8,1496.7,8.84602806]
[1744300858641,0.01000267,1497.0,1496.7,13.84602806]
[1744300858934,0.01000267,1497.0,1496.8,22.28292539]
[1744300859139,0.01000267,1497.0,1496.9,19.07512539]
[1744300859339,1.34691267,1497.0,1496.9,19.07512539]
[1744300859740,1.33709,1496.8,1496.7,0.01000267]
[1744300859942,1.33703,1496.9,1496.8,8.83602539]
[1744300860144,1.33709,1496.8,1496.7,0.01000267]
[1744300860342,0.01000267,1497.0,1496.8,8.83602539]
[1744300860535,0.01000267,1497.0,1496.9,13.4469]
[1744300860740,0.01000267,1497.0,1496.9,23.61992539]
[1744300860942,7.24540752,1497.6,1496.9,18.4469]
[1744300861140,7.24540752,1497.6,1497.5,4.54426]
[1744300861356,1.34957083,1497.7,1497.6,1.33637]
[1744300861546,12.0756792,1497.9,1497.8,1.33619]
[1744300861849,12.0756792,1497.9,1497.8,3.2078]
[1744300862045,3.33966,1498.2,1497.8,8.2078]
[1744300862347,1.33619,1497.8,1497.7,0.01000267]
[1744300862550,4.54399,1497.8,1497.7,2.67e-06]
[1744300863143,11.31349,1497.8,1497.7,2.67e-06]
[1744300863351,1.33619,1497.8,1497.7,3.20780267]
[1744300863545,1.34610267,1498.0,1497.7,3.20780267]
[1744300863849,0.01000267,1498.0,1497.9,4.54391]
[1744300864053,18.17223188,1498.6,1497.9,3.2078]
[1744300864244,3.2078,1498.5,1497.8,10.1718]
[1744300864548,1.33608,1498.0,1497.8,10.1718]
[1744300864739,1.33611,1497.9,1497.8,10.1718]
[1744300864939,13.1851,1498.4,1497.8,14.71577]
[1744300865142,1.33571,1498.4,1498.0,3.2078]
[1744300865449,1.34575267,1498.3,1498.2,3.2078]
[1744300865754,1.33611,1497.9,1497.8,3.2078]
[1744300866047,1.33611,1497.9,1497.8,13.0889]
[1744300866255,1.33619,1497.8,1497.7,2.67e-06]
[1744300866651,6.33619,1497.8,1497.7,2.67e-06]
[1744300866849,11.28739,1497.8,1497.7,2.67e-06]
[1744300867042,14.49519,1497.8,1497.7,2.67e-06]
[1744300867251,18.48023477,1497.8,1496.6,3.2078]
[1744300867446,3.2078,1497.0,1496.6,3.2078]
[1744300867643,1.33718,1496.7,1496.6,3.2078]
[1744300867848,3.2078,1497.0,1496.4,3.2078]
[1744300868154,3.2078,1497.0,1496.6,3.2078]
[1744300868155,1.33718,1496.7,1496.6,3.2078]
[1744300868357,1.33727,1496.6,1496.5,10.0191]
[1744300868548,0.01000267,1496.8,1496.5,10.02910267]
[1744300868943,1.33719,1496.7,1496.6,3.2078]
[1744300869157,0.01000267,1496.8,1496.6,3.2078]
[1744300869452,1.34711267,1496.8,1496.7,10.0191]
[1744300869846,1.33727,1496.6,1496.5,0.01000267]
[1744300870252,1.34713267,1496.8,1496.5,5.01000267]
[1744300870447,1.33718,1496.7,1496.6,13.2269]
[1744300870643,0.01000267,1496.8,1496.6,13.2269]
[1744300870846,0.01000267,1496.8,1496.7,9.7049]
[1744300871047,1.34709267,1496.8,1496.7,9.7049]
[1744300871250,0.01000267,1496.8,1496.7,9.7049]
[1744300871444,1.34709267,1496.8,1496.7,9.7049]
[1744300871855,0.01000267,1496.8,1496.6,3.2078]
[1744300872151,1.33727,1496.6,1496.5,0.01000267]
[1744300872357,0.01000267,1496.8,1496.5,0.01000267]
[1744300872655,1.33727,1496.6,1496.5,9.71490267]
[1744300872856,0.01000267,1496.8,1496.5,9.71490267]
[1744300873056,0.01000267,1496.8,1496.6,3.2078]
[1744300873263,1.34709267,1496.8,1496.7,9.7049]
[1744300873754,1.33727,1496.6,1496.5,0.01000267]
[1744300873957,6.33727,1496.6,1496.5,2.67e-06]
[1744300874159,9.86660155,1496.6,1496.5,2.67e-06]
[1744300874452,9.86646411,1496.6,1496.5,2.67e-06]
[1744300874761,19.11027,1496.6,1496.5,2.67e-06]
[1744300874954,19.43165255,1496.6,1496.5,2.67e-06]
[1744300875563,19.43184059,1496.6,1496.5,2.67e-06]
[1744300876054,10.90247,1496.6,1496.5,2.67e-06]
[1744300876560,15.90247,1496.6,1496.5,2.67e-06]
[1744300876958,16.22397049,1496.6,1496.5,2.67e-06]
[1744300877159,1.33798,1495.8,1495.7,10.3477]
[1744300877356,1.33834,1495.4,1495.3,3.2078]
[1744300877857,3.34503,1495.8,1495.3,8.2078]
[1744300877858,3.34496,1495.8,1495.3,8.2078]
[1744300878156,1.33852,1495.2,1495.1,3.2078]
[1744300878349,3.34586,1495.4,1495.0,10.3477]
[1744300878555,1.33861,1495.1,1495.0,10.35770267]
[1744300878757,1.33861,1495.1,1495.0,2.67e-06]
[1744300878954,9.54641,1495.1,1495.0,2.67e-06]
[1744300879157,1.33915,1494.5,1494.4,10.3477]
[1744300879959,3.2078,1494.5,1494.2,20.4990374]
[1744300880260,4.54712,1494.3,1494.2,20.4990374]
[1744300880460,4.54712,1494.3,1494.2,12.02130741]
[1744300880760,4.54712,1494.3,1493.7,10.0244]
[1744300880761,11.55617,1494.3,1493.7,10.0244]
[1744300881060,9.9429,1494.2,1493.8,3.2078]
[1744300881264,1.33959,1494.0,1493.9,10.0244]
[1744300881460,1.3398,1493.8,1493.5,1.33999]
[1744300881654,1.3398,1493.8,1493.6,10.0244]
[1744300881857,3.2078,1493.9,1493.4,3.2078]
[1744300882057,1.33995,1493.6,1493.5,10.0244]
[1744300882265,3.2078,1493.6,1493.1,15.4218416]
[1744300882456,1.34031,1493.2,1493.1,25.4462416]
[1744300882660,1.34031,1493.2,1493.1,15.4218416]
[1744300882957,1.34009,1493.5,1493.1,20.4218416]
[1744300883154,1.34014,1493.4,1493.2,9.5104]
[1744300883357,1.34018,1493.4,1493.2,9.5104]
[1744300884063,1.34019,1493.4,1493.2,9.5104]
[1744300884257,1.34031,1493.2,1493.1,15.4218416]
[1744300884663,6.70202,1493.1,1492.3,40.9980749]
[1744300884864,1.34103,1492.4,1492.3,9.12013522]
[1744300885066,4.54883,1492.4,1492.3,7.57603775]
[1744300885362,1.34103,1492.4,1492.3,7.57603775]
[1744300885759,21.23183,1492.4,1492.3,2.28724775]
[1744300885959,13.02403,1492.4,1492.3,2.28724775]
[1744300886168,13.02403,1492.4,1492.3,0.20950775]
[1744300886355,1.34121,1492.2,1492.1,46.1228343]
[1744300886760,18.24342,1492.4,1491.8,9.7699]
[1744300886967,1.34148,1491.9,1491.8,9.7699]
[1744300887165,3.35326,1492.1,1491.5,3.2078]
[1744300887367,1.34162,1491.8,1491.5,3.2078]
[1744300887671,0.01003714,1491.9,1491.6,9.7699]
[1744300887866,1.34157,1491.8,1491.7,3.2078]
[1744300888067,1.34166,1491.7,1491.6,9.7699]
[1744300888265,0.01022042,1491.8,1491.6,9.7699]
[1744300888469,1.34166,1491.7,1491.6,9.7699]
[1744300888663,1.34166,1491.7,1491.3,3.2078]
[1744300888664,3.35436,1491.7,1491.3,3.2078]
[1744300888864,1.34188,1491.5,1491.3,3.2078]
[1744300889063,1.34176,1491.6,1491.4,10.04867958]
[1744300889267,3.2078,1491.8,1491.4,10.04867958]
[1744300889567,3.35483,1491.4,1490.8,15.42381661]
[1744300889866,3.2078,1491.0,1490.8,15.42381661]
[1744300890169,3.2078,1491.6,1490.8,15.42381661]
[1744300890367,0.01003714,1491.0,1490.9,4.55013]
[1744300890563,0.01003714,1491.0,1490.9,3.2078]
[1744300890763,0.01003714,1491.0,1490.9,8.2078]
[1744300891165,0.01003714,1491.0,1490.3,8.102]
[1744300891377,6.57366714,1491.0,1490.3,8.102]
[1744300891567,1.34278,1490.5,1490.3,8.102]
[1744300891869,0.01003714,1491.0,1490.3,13.102]
[1744300892075,0.01003714,1491.0,1490.9,4.55018]
[1744300892276,0.01003714,1491.0,1490.9,3.2078]
[1744300892569,1.35232714,1491.0,1490.9,3.2078]
[1744300892772,0.01003714,1491.0,1490.9,5.0]
[1744300893076,3.2078,1491.9,1491.3,1.34196]
[1744300893375,3.35483,1491.4,1490.8,1.34245]
[1744300893677,3.35483,1491.4,1490.7,3.2078]
[1744300893967,3.2078,1491.5,1490.7,3.2078]
[1744300894273,1.34229,1491.0,1490.9,0.01003714]
[1744300894473,4.55009,1491.0,1490.9,0.01003714]
[1744300894773,1.34229,1491.0,1490.9,0.01003714]
[1744300894976,1.34229,1491.0,1490.9,7.14e-06]
[1744300894977,4.55009,1491.0,1490.9,7.14e-06]
[1744300895175,9.55009,1491.0,1490.9,7.14e-06]
[1744300895371,3.2078,1490.7,1489.6,0.10996607]
[1744300895676,3.2078,1489.7,1489.6,0.10996607]
[1744300895861,1.34346,1489.7,1489.6,0.10996607]
[1744300896067,4.55126,1489.7,1489.6,0.10996607]
[1744300896369,1.34346,1489.7,1489.6,0.10996607]
[1744300896673,0.01003714,1489.8,1489.6,5.10996607]
[1744300896870,0.01003714,1489.8,1489.7,10.0895]
[1744300897076,0.01003714,1489.8,1489.7,14.64076]
[1744300897372,3.2078,1490.1,1489.7,15.0895]
[1744300897672,4.55117,1489.8,1489.7,50.8895]
[1744300897870,1.34346,1489.7,1489.6,0.12000321]
[1744300898072,110.4768,1489.8,1488.7,3.2078]
[1744300898271,1.34405,1489.1,1488.8,40.8]
[1744300898577,3.2078,1489.2,1488.8,44.0078]
[1744300898767,3.2078,1489.8,1489.0,3.2078]
[1744300899077,3.2078,1490.1,1489.7,3.2078]
[1744300899264,3.2078,1490.1,1489.5,3.2078]
[1744300899463,3.2078,1490.3,1489.9,1.34328]
[1744300899676,0.01007117,1489.9,1489.7,3.2078]
[1744300899977,0.01007117,1489.9,1489.8,1.34337]
[1744300900271,3.35633,1490.8,1489.8,1.34337]
[1744300900272,1.3427,1490.6,1489.8,1.34337]
[1744300900473,3.2078,1490.5,1489.8,13.4945]
[1744300900674,3.2078,1490.3,1489.4,3.2078]
[1744300900866,3.2078,1489.9,1489.5,10.2867]
[1744300901073,1.34326,1490.0,1489.6,1.34351]
[1744300901367,4.55126,1489.7,1489.6,0.01007117]
[1744300901677,1.34346,1489.7,1489.6,0.01007117]
[1744300901878,16.77336,1489.7,1489.6,1.17e-06]
[1744300902176,3.35996,1489.2,1488.4,3.2078]
[1744300902369,3.2078,1488.7,1488.4,3.2078]
[1744300902569,1.34452,1488.6,1488.4,3.2078]
[1744300902878,3.2078,1488.7,1488.3,1.35835801]
[1744300903074,1.34463,1488.4,1488.3,0.01366801]
[1744300903379,6.34463,1488.4,1488.3,8.01e-06]
[1744300903677,3.36243,1488.1,1486.8,4.55386]
[1744300903882,3.2078,1487.5,1486.9,3.20780705]
[1744300904182,3.2078,1487.2,1486.7,3.2078]
[1744300904379,3.2078,1487.2,1486.0,4.03966]
[1744300904380,3.2078,1487.2,1486.5,3.2078]
[1744300904574,0.01007117,1487.3,1486.5,3.2078]
[1744300904768,0.01007117,1487.3,1486.9,3.2078]
[1744300904972,0.01007117,1487.3,1487.0,11.24027]
[1744300905169,3.21787117,1487.3,1486.7,0.6728]
[1744300905471,4.55373,1487.0,1486.6,9.8944]
[1744300905678,4.55359,1487.2,1486.6,9.8944]
[1744300905975,0.01007117,1487.3,1486.6,9.8944]
[1744300906176,0.01007117,1487.3,1486.9,1.34594]
[1744300906388,0.01007117,1487.3,1487.0,9.8944]
[1744300906570,0.01007117,1487.3,1487.2,1.34572]
[1744300906984,0.01007117,1487.3,1487.2,6.34572]
[1744300907280,0.01007117,1487.3,1487.2,5.0]
[1744300907483,0.01007117,1487.3,1487.2,14.5855]
[1744300907783,0.01007117,1487.3,1487.2,15.93122]
[1744300907970,3.2078,1488.3,1487.3,3.36408]
[1744300908172,3.2078,1488.3,1487.8,3.2078]
[1744300908376,1.34454,1488.5,1488.0,3.2078]
[1744300908582,3.2078,1489.0,1488.3,1.3447]
[1744300908770,3.2078,1489.0,1488.4,9.5855]
[1744300908978,3.2078,1489.2,1488.7,1.34432]
[1744300909281,1.35413117,1489.1,1488.8,9.5855]
[1744300909481,0.01007117,1489.1,1488.8,9.5855]
[1744300909686,3.21787117,1489.1,1488.9,1.34416]
[1744300909883,3.35858,1489.8,1488.9,1.34416]
[1744300909884,3.2078,1489.8,1489.0,12.7933]
[1744300910073,4.55148,1489.5,1489.1,1.34395]
[1744300910275,4.55162,1489.3,1488.7,3.2078]
[1744300910581,4.55198,1488.9,1488.8,40.8]
[1744300910884,6.56838,1488.9,1488.1,1.3449]
[1744300911085,1.34466,1488.4,1487.9,8.3649]
[1744300911283,1.34461,1488.5,1488.2,40.8]
[1744300911586,1.34449,1488.6,1488.3,1.34469]
[1744300911783,3.2078,1488.9,1488.2,44.0078]
[1744300912088,0.01007117,1488.6,1488.3,0.01007117]
[1744300912386,3.2078,1489.4,1488.5,3.2078]
[1744300912587,3.2078,1489.2,1488.7,1.34433]
[1744300912788,3.2078,1489.2,1488.4,3.2078]
[1744300912973,9.6876,1489.4,1488.4,3.2078]
[1744300912974,3.2078,1489.0,1488.7,1.34432]
[1744300913173,6.56867,1488.8,1488.2,40.8]
[1744300913386,1.34472,1488.3,1488.2,40.8]
[1744300913581,1.34472,1488.3,1487.3,15.6567]
[1744300913582,1.34529,1487.7,1487.3,15.6567]
[1744300913789,3.2078,1487.8,1487.4,10.3864]
[1744300913976,3.2078,1487.8,1487.5,40.8]
[1744300914288,0.01007117,1487.7,1487.5,40.8]
[1744300914484,0.01007117,1487.7,1487.6,10.3864]
[1744300914681,0.01007117,1487.7,1487.6,11.73176]
[1744300914987,0.01007117,1487.7,1487.6,16.73176]
[1744300915489,0.01007117,1487.7,1487.6,10.3864]
[1744300915683,1.34545,1487.5,1487.4,0.01007117]
[1744300915985,4.55325,1487.5,1487.4,0.01007117]
[1744300916376,9.8567,1487.6,1487.4,0.01007117]
[1744300916377,0.01007117,1487.7,1487.4,5.01007117]
[1744300916685,0.01007117,1487.7,1487.4,1.35555117]
[1744300916686,3.2078,1487.6,1487.4,1.35555117]
[1744300916883,4.55321,1487.6,1487.5,9.9997]
[1744300917185,1.34545,1487.5,1487.4,0.01007117]
[1744300917890,0.01007117,1487.7,1487.4,0.01007117]
[1744300918089,1.34545,1487.5,1487.4,0.01007117]
[1744300918388,3.21787117,1487.7,1487.4,40.81007117]
[1744300918593,0.01007117,1487.7,1487.4,40.81007117]
[1744300918786,1.34536,1487.6,1487.4,40.81007117]
[1744300918982,0.01007117,1487.7,1487.4,44.01787117]
[1744300919287,0.01007117,1487.7,1487.5,1.34538]
[1744300919483,0.01007117,1487.7,1487.4,44.01787117]
[1744300919484,4.56318117,1487.7,1487.4,42.15558117]
[1744300919687,0.01007117,1487.7,1487.4,40.81007117]
[1744300919893,1.35542117,1487.7,1487.4,42.15560117]
[1744300920078,0.01007117,1487.7,1487.6,1.34536]
[1744300920282,0.01007117,1487.7,1487.5,1.34536]
[1744300920586,0.01007117,1487.7,1487.6,1.34536]
[1744300920982,3.2078,1488.1,1487.6,8.2078]
[1744300921187,3.2078,1488.1,1487.5,3.36363]
[1744300921491,3.2078,1488.4,1487.7,3.2078]
[1744300921791,1.3447,1488.4,1488.2,1.34479]
[1744300922091,3.2078,1488.6,1488.0,12.776]
[1744300922383,3.2078,1489.1,1488.5,3.36115]
[1744300922578,1.34409,1489.0,1488.8,1.34422]
[1744300922776,13.2311,1489.3,1488.6,3.36114]
[1744300922987,3.2078,1489.2,1488.6,3.36114]
[1744300923288,3.2078,1489.4,1488.7,3.2078]
[1744300923584,113.47989,1490.0,1488.7,3.2078]
[1744300923585,3.2078,1489.8,1489.3,3.2078]
[1744300923893,3.35797,1490.1,1488.8,6.72098]
[1744300923894,0.01007117,1489.7,1489.4,40.8]
[1744300924087,1.34364,1489.5,1489.4,40.8]
[1744300924385,0.01007117,1489.7,1489.5,1.34356]
[1744300924588,0.01007117,1489.7,1489.5,1.34358]
[1744300924781,0.01007117,1489.7,1489.4,40.8]
[1744300925280,0.01007117,1489.7,1489.6,1.34355]
[1744300925487,3.2078,1490.0,1489.7,1.3434]
[1744300925784,123.48997188,1490.6,1489.7,1.3434]
[1744300925785,1.34317,1490.1,1489.9,1.34328]
[1744300925985,3.2078,1490.2,1489.6,1.34349]
[1744300926182,3.2078,1489.8,1489.4,40.8]
[1744300926383,4.55122,1489.8,1489.5,1.34364]
[1744300926690,4.55122,1489.8,1489.5,0.01007117]
[1744300926691,0.01007117,1489.7,1489.5,0.01007117]
[1744300927194,4.55135,1489.6,1489.5,0.01007117]
[1744300927581,3.35888,1489.6,1489.0,3.2078]
[1744300927885,3.2078,1489.4,1489.0,1.34402]
[1744300928094,3.2078,1489.4,1488.7,3.2078]
[1744300928292,10.1621,1489.3,1488.6,6.56891]
[1744300928483,1.34436,1488.7,1488.5,1.34449]
[1744300928691,6.56781,1489.1,1488.4,3.2078]
[1744300928881,3.36069,1488.8,1488.5,0.01007117]
[1744300929083,1.34445,1488.6,1488.5,0.01007117]
[1744300929486,6.34445,1488.6,1488.5,1.17e-06]
[1744300929793,16.50655,1488.6,1488.5,1.17e-06]
[1744300930493,16.82451779,1488.6,1488.5,1.17e-06]
[1744300930787,16.824487,1488.6,1488.5,1.17e-06]
[1744300930988,16.50655,1488.6,1488.5,1.17e-06]
[1744300931190,16.8245867,1488.6,1488.5,1.17e-06]
[1744300931489,1.34505,1488.0,1487.7,40.8]
[1744300931691,3.2078,1488.2,1487.7,40.8]
[1744300931889,3.2078,1487.8,1487.7,42.14523]
[1744300932078,3.2078,1487.9,1487.7,40.8]
[1744300932682,1.34518,1487.8,1487.7,40.81007117]
[1744300932887,10.97928,1487.8,1487.7,40.81007117]
[1744300933188,10.97928,1487.8,1487.7,0.01007117]
[1744300933593,15.97928,1487.8,1487.7,0.01007117]
[1744300934392,15.97928,1487.8,1487.7,1.17e-06]
[1744300934886,14.6341,1487.8,1486.9,4.7675]
[1744300935082,3.2078,1487.0,1486.6,5.2543]
[1744300935293,3.2078,1486.8,1486.1,3.2078]
[1744300935496,3.2078,1486.8,1486.0,4.7675]
[1744300935791,3.2078,1486.6,1486.0,4.7675]
[1744300935984,9.73,1486.7,1486.0,4.7675]
[1744300935985,3.2078,1486.3,1486.0,4.7675]
[1744300936180,4.55433,1486.3,1486.2,0.01007117]
[1744300937090,0.01007117,1486.4,1486.2,5.01007117]
[1744300937390,1.35652117,1486.4,1486.2,0.01007117]
[1744300937581,1.34653,1486.3,1486.2,0.01007117]
[1744300937784,4.55433,1486.3,1486.2,0.01007117]
[1744300937981,9.55433,1486.3,1486.2,1.17e-06]
[1744300938182,1.34699,1485.8,1485.7,0.01609594]
[1744300938387,4.55479,1485.8,1485.7,0.01609594]
[1744300938890,3.2078,1486.2,1485.7,5.01609594]
[1744300939097,3.2078,1486.2,1485.8,9.9366]
[1744300939397,3.2078,1486.2,1485.8,9.94667117]
[1744300939591,1.34685,1486.0,1485.8,9.94667117]
[1744300939787,3.2078,1486.2,1486.0,1.34677]
[1744300939991,0.01007117,1486.4,1485.8,16.52189117]
[1744300940191,0.01007117,1486.4,1486.0,6.57482]
[1744300940489,1.35657117,1486.4,1486.1,9.9366]
[1744300940695,0.01007117,1486.4,1486.3,1.34653]
[1744300941092,0.01007117,1486.4,1486.1,9.9366]
[1744300941290,0.01007117,1486.4,1486.3,1.34653]
[1744300941491,0.01007117,1486.4,1486.3,4.55433]
[1744300941690,1.34601,1486.9,1486.4,3.36611]
[1744300941989,4.85617188,1487.1,1486.5,57.28681]
[1744300942185,4.85617188,1487.1,1487.0,1.3459]
[1744300942598,4.85617188,1487.1,1487.0,6.3459]
[1744300942793,4.85617188,1487.1,1487.0,9.5537]
[1744300942989,3.36493,1487.0,1486.2,3.2078]
[1744300943289,1.34681,1486.0,1485.7,3.22389594]
[1744300943489,3.36634,1486.3,1485.8,10.353]
[1744300943688,1.3469,1485.9,1485.8,10.353]
[1744300943903,85.04241,1486.9,1485.8,10.353]
[1744300943904,3.2078,1486.3,1485.8,10.353]
[1744300944091,3.2078,1486.5,1486.1,3.2078]
[1744300944395,3.2078,1486.6,1486.2,10.353]
[1744300944600,1.34653,1486.3,1486.2,10.353]
[1744300944895,6.57416,1486.3,1485.7,1.36317594]
[1744300945090,0.01007117,1486.4,1486.2,1.3466]
[1744300945290,0.01007117,1486.4,1486.2,51.153]
[1744300945487,0.01007117,1486.4,1486.3,1.34653]
[1744300945692,3.36521,1486.8,1486.4,1.34639]
[1744300945890,1.34633,1486.6,1486.4,1.34639]
[1744300946093,1.34653,1486.3,1486.2,10.353]
[1744300946294,3.2078,1486.7,1486.2,10.353]
[1744300946595,3.2078,1486.9,1486.3,6.57414]
[1744300946800,3.2078,1487.7,1486.7,3.2078]
[1744300947000,3.2078,1487.9,1487.3,3.36408]
[1744300947199,6.57053,1487.9,1487.0,6.57237]
[1744300947390,0.01007117,1487.7,1487.5,0.01007117]
[1744300947699,1.17e-06,1487.7,1487.6,4.55316]
[1744300947898,3.43952188,1488.1,1488.0,1.345]
[1744300948090,1.34536,1487.6,1487.5,0.01007117]
[1744300948490,6.34536,1487.6,1487.5,0.01007117]
[1744300948696,16.56726,1487.6,1487.5,0.01007117]
[1744300948896,11.56726,1487.6,1487.5,0.01007117]
[1744300949097,3.21787117,1487.7,1487.5,0.01007117]
[1744300949297,3.21787117,1487.7,1487.6,1.34536]
[1744300949493,3.21787117,1487.7,1487.6,11.74276]
[1744300949700,0.01007117,1487.7,1487.6,10.3974]
[1744300949899,0.01007117,1487.7,1487.6,11.74276]
[1744300950402,7.01008904,1488.0,1487.9,1.34509]
[1744300950699,9.48009531,1488.1,1488.0,1.345]
[1744300950700,1.8125067,1488.1,1488.0,1.345]
[1744300950905,3.2078,1488.9,1488.1,3.36227]
[1744300951102,14.490815,1489.0,1488.9,1.34418]
[1744300951299,14.0379158,1489.2,1489.1,1.344]
[1744300951611,10.1516,1490.0,1489.2,3.3597]
[1744300951904,3.2078,1490.1,1489.3,3.2078]
[1744300952092,0.01007117,1489.7,1489.3,3.2078]
[1744300952290,4.56137117,1489.7,1489.1,40.8]
[1744300952503,3.2078,1489.5,1489.1,40.8]
[1744300952901,0.01007117,1489.7,1489.1,45.8]
[1744300952902,3.21787117,1489.7,1489.1,45.8]
[1744300953103,1.82257553,1489.7,1489.1,44.0078]
[1744300953298,1.82257553,1489.7,1489.6,1.34355]
[1744300953299,0.01007117,1489.7,1489.6,1.34355]
[1744300953705,0.01007117,1489.7,1489.6,6.34355]
[1744300954108,24.1513584,1490.4,1489.6,6.34355]
[1744300954109,3.2078,1490.1,1489.6,8.2078]
[1744300954312,24.1513584,1490.4,1490.3,1.34292]
[1744300954506,3.2078,1490.9,1490.3,5.0]
[1744300954706,3.2078,1490.9,1490.7,1.34253]
[1744300955010,3.2078,1491.1,1490.6,3.2078]
[1744300955303,3.21787117,1490.9,1490.7,0.01007117]
[1744300955703,0.01007117,1490.9,1490.8,1.34247]
[1744300956105,4.54969,1491.5,1490.8,8.2078]
[1744300956410,3.2078,1491.7,1491.2,3.2078]
[1744300956610,3.2078,1491.9,1491.7,1.34163]
[1744300956810,3.2078,1492.3,1492.1,1.34127]
[1744300957105,3.2078,1492.3,1491.8,3.2078]
[1744300957308,3.2078,1492.0,1491.2,3.2078]
[1744300957508,3.2078,1492.0,1491.9,0.01007117]
[1744300957704,4.54919,1492.0,1491.9,0.01007117]
[1744300957911,5.02030436,1492.0,1491.9,0.01007117]
[1744300958106,11.36169436,1492.0,1491.9,0.01007117]
[1744300958301,10.02030436,1492.0,1491.6,10.34452027]
[1744300958503,4.54946,1491.7,1491.6,10.34452027]
[1744300958910,6.36196436,1491.7,1491.6,10.34452027]
[1744300959414,5.02030436,1491.7,1491.6,10.34452027]
[1744300959616,3.2078,1491.7,1491.6,10.34452027]
[1744300959815,3.2078,1491.7,1491.6,20.06622027]
[1744300960314,5.02030436,1491.7,1491.6,10.34452027]
[1744300960508,3.2078,1491.7,1491.6,10.34452027]
[1744300960712,5.02030436,1491.7,1491.6,10.34452027]
[1744300960917,3.2078,1492.0,1491.6,5.0]
[1744300961116,3.2078,1492.8,1492.0,3.35336]
[1744300961312,3.2078,1492.8,1491.7,112.1327]
[1744300961313,3.2078,1492.6,1492.2,3.2078]
[1744300961514,3.2078,1493.2,1492.9,1.34054]
[1744300961713,3.2078,1493.2,1492.9,1.34055]
[1744300961912,3.2078,1493.4,1492.8,3.35168]
[1744300962113,3.2078,1493.0,1492.8,9.8244]
[1744300962309,4.54835,1493.0,1492.8,9.8244]
[1744300962517,3.2078,1493.0,1492.8,9.8244]
[1744300962715,1.34058,1492.9,1492.8,0.01007117]
[1744300963222,0.01007117,1493.2,1493.1,1.3404]
[1744300963716,4.54787,1493.5,1493.1,44.0078]
[1744300963912,1.34019,1493.4,1493.1,44.0078]
[1744300964113,9.9055,1493.4,1493.1,40.8]
[1744300964312,3.2078,1493.5,1493.1,40.8]
[1744300964513,9.9055,1493.9,1493.2,9.8244]
[1744300964714,3.2078,1493.6,1493.3,1.34022]
[1744300964919,3.2078,1493.6,1493.2,9.8244]
[1744300965116,3.2078,1493.5,1493.3,1.34019]
[1744300965314,3.2078,1493.5,1493.2,1.34029]
[1744300965514,9.8863,1493.4,1493.1,40.8]
[1744300965721,9.8863,1493.4,1492.8,0.01007117]
[1744300965722,3.2078,1493.2,1492.8,0.01007117]
[1744300965927,3.2078,1493.1,1492.9,1.34056]
[1744300966115,3.2078,1493.1,1492.8,0.01007117]
[1744300966424,3.2078,1493.3,1493.2,1.34031]
[1744300966625,3.2078,1493.6,1493.4,1.34008]
[1744300966922,9.8863,1493.8,1493.3,3.2078]
[1744300967122,9.8863,1493.8,1493.4,9.9002]
[1744300967317,3.2078,1493.9,1493.7,1.33983]
[1744300967517,9.8863,1494.0,1493.8,1.33977]
[1744300967717,1.33968,1493.9,1493.4,9.91027117]
[1744300967916,3.2078,1493.6,1493.5,1.34004]
[1744300968118,3.2078,1493.9,1493.4,0.01007117]
[1744300968322,3.2078,1494.1,1493.6,3.34989]
[1744300968527,3.2078,1494.1,1493.7,10.368]